bitfinex/quotes_SOLUSD_20241220
["timestamp","ask_amount","ask_price","bid_price","bid_amount"]
[1734696245489,44.14774747,178.03,178.01,0.3070876]
[1734696245905,1.05307476,178.14,178.01,0.3070876]
[1734696246093,44.0197,178.32,178.01,0.3070876]
[1734696246094,44.14774747,178.1,178.01,0.3070876]
[1734696246295,44.14774747,178.08,178.01,0.3070876]
[1734696246477,44.14774747,178.04,178.01,0.3070876]
[1734696246786,44.14774747,178.02,178.01,0.3070876]
[1734696247479,44.14774747,178.04,178.01,0.3070876]
[1734696247676,44.14774747,178.08,178.01,0.3070876]
[1734696247888,11.1859,178.34,178.07,44.14774747]
[1734696248098,44.14774747,178.22,178.11,44.14774747]
[1734696248396,44.14774747,178.22,178.13,44.14774747]
[1734696248797,44.14774747,178.2,178.09,44.14774747]
[1734696249183,1.05205305,178.28,178.07,44.14774747]
[1734696249184,44.14774747,178.18,178.07,44.14774747]
[1734696249373,44.14774747,178.14,178.1,20.0]
[1734696249876,44.14774747,178.2,178.02,22.464713]
[1734696249877,44.14774747,178.19,178.11,20.0]
[1734696250383,44.14774747,178.23,178.15,20.0]
[1734696250899,44.14774747,178.29,178.21,0.12549]
[1734696251205,44.14774747,178.38,178.27,20.0]
[1734696251206,44.14774747,178.33,178.27,20.0]
[1734696251392,88.29549494,178.29,178.0,28.46648301]
[1734696251596,44.14774747,178.19,178.09,44.14774747]
[1734696251904,44.14774747,178.17,178.07,44.14774747]
[1734696252477,44.14774747,178.17,178.08,4.14420113]
[1734696252707,44.14774747,178.22,178.11,44.14774747]
[1734696253004,44.14774747,178.16,178.07,44.14774747]
[1734696253185,44.14774747,178.14,178.03,44.14774747]
[1734696253377,44.14774747,178.08,178.04,4.14599041]
[1734696253576,0.12549,178.18,178.04,2.64755504]
[1734696253577,44.14774747,178.06,178.04,2.64755504]
[1734696254005,45.2007689,178.05,178.01,0.3070876]
[1734696254305,88.29549494,178.02,178.01,0.3070876]
[1734696254809,44.14774747,177.91,177.9,22.496039]
[1734696255000,44.14774747,177.95,177.86,44.14774747]
[1734696255208,44.14774747,177.95,177.89,22.496632]
[1734696255404,44.14774747,177.97,177.89,22.496632]
[1734696255611,44.14774747,178.01,177.92,44.14774747]
[1734696256215,44.14774747,178.01,177.9,44.14774747]
[1734696256385,44.14774747,178.01,177.94,0.12549]
[1734696256582,44.14774747,178.03,177.96,0.12549]
[1734696256789,44.14774747,178.03,177.99,20.0]
[1734696256990,44.14774747,178.01,177.99,20.0]
[1734696257188,44.14774747,178.01,177.92,20.0]
[1734696257403,44.14774747,177.96,177.92,20.0]
[1734696257734,44.14774747,177.96,177.9,33.75]
[1734696258017,44.14774747,177.96,177.89,22.496632]
[1734696258226,44.14774747,177.98,177.89,22.496632]
[1734696258389,44.14774747,178.02,177.92,44.14774747]
[1734696258590,1.05344065,178.1,177.92,44.14774747]
[1734696258591,44.14774747,178.0,177.92,44.14774747]
[1734696258917,10.7039,178.15,177.89,22.496632]
[1734696258918,44.14774747,177.94,177.89,22.496632]
[1734696259086,44.14774747,177.9,177.89,22.496632]
[1734696259812,44.14774747,177.9,177.84,0.696371]
[1734696260124,44.14774747,177.87,177.84,0.696371]
[1734696260613,10.6294,177.96,177.84,0.696371]
[1734696260614,44.14774747,177.89,177.84,0.696371]
[1734696260784,44.14774747,177.93,177.85,0.12549]
[1734696260986,44.14774747,177.93,177.84,0.696371]
[1734696260987,44.14774747,177.89,177.84,0.696371]
[1734696261286,44.14774747,177.87,177.84,0.696371]
[1734696261708,1.05387113,177.92,177.84,0.696371]
[1734696261709,44.14774747,177.89,177.84,0.696371]
[1734696262122,44.14774747,177.87,177.84,0.696371]
[1734696262497,44.14774747,177.85,177.84,0.696371]
[1734696263619,88.29549494,177.85,177.84,0.696371]
[1734696263925,0.12549,177.84,177.74,22.518562]
[1734696264094,88.29549494,177.75,177.66,0.7166405]
[1734696264299,44.14774747,177.71,177.68,22.526699]
[1734696264523,44.14774747,177.69,177.68,22.526699]
[1734696264694,44.14774747,177.69,177.66,0.7166405]
[1734696265020,44.14774747,177.75,177.66,0.7166405]
[1734696265021,44.14774747,177.67,177.66,0.7166405]
[1734696265225,88.29549494,177.67,177.66,0.7166405]
[1734696265820,88.29549494,177.67,177.47,0.7166405]
[1734696266064,44.14774747,177.49,177.47,0.7166405]
[1734696266196,44.14774747,177.48,177.47,0.7166405]
[1734696266395,44.14774747,177.48,177.29,40.1125347]
[1734696266396,45.20417324,177.48,177.29,84.26028217]
[1734696266593,44.14774747,177.39,177.29,84.26028217]
[1734696266816,44.14774747,177.37,177.29,40.1125347]
[1734696267002,44.14774747,177.35,177.29,31.31951526]
[1734696267495,44.14774747,177.41,177.31,44.14774747]
[1734696267698,44.14774747,177.43,177.33,44.14774747]
[1734696267897,1.05642577,177.48,177.4,44.14774747]
[1734696268125,44.14774747,177.5,177.32,6.83132691]
[1734696268330,44.14774747,177.57,177.31,44.14774747]
[1734696268331,44.14774747,177.41,177.31,44.14774747]
[1734696268542,44.14774747,177.41,177.29,31.31951526]
[1734696268711,1.05686784,177.47,177.29,31.31951526]
[1734696268712,44.14774747,177.37,177.29,31.31951526]
[1734696268907,44.14774747,177.41,177.3,44.14774747]
[1734696269111,44.14774747,177.41,177.32,44.14774747]
[1734696269536,1.05686784,177.47,177.36,44.14774747]
[1734696269707,44.14774747,177.53,177.43,44.14774747]
[1734696269921,44.14774747,177.53,177.44,0.12549]
[1734696270142,44.14774747,177.45,177.35,44.14774747]
[1734696270648,44.14774747,177.57,177.47,0.12549]
[1734696270815,44.14774747,177.53,177.46,20.0]
[1734696271014,44.14774747,177.51,177.46,20.0]
[1734696271541,44.14774747,177.48,177.36,20.0]
[1734696271710,44.14774747,177.48,177.4,20.0]
[1734696272140,44.14774747,177.48,177.3,44.14774747]
[1734696272141,44.14774747,177.41,177.3,44.14774747]
[1734696272341,44.14774747,177.41,177.32,44.14774747]
[1734696272524,44.14774747,177.45,177.34,44.14774747]
[1734696272840,44.14774747,177.53,177.43,0.12549]
[1734696273043,44.14774747,177.55,177.46,44.14774747]
[1734696273218,44.14774747,177.55,177.47,20.0]
[1734696273417,44.14774747,177.53,177.47,20.0]
[1734696273613,44.14774747,177.55,177.44,44.14774747]
[1734696273817,44.14774747,177.51,177.42,64.14774747]
[1734696274052,44.14774747,177.62,177.53,20.0]
[1734696274229,44.14774747,177.64,177.57,20.0]
[1734696274425,44.14774747,177.62,177.57,20.0]
[1734696274925,44.14774747,177.6,177.51,20.0]
[1734696275123,44.14774747,177.6,177.53,20.0]
[1734696275443,44.14774747,177.6,177.54,0.12549]
[1734696275755,44.14774747,177.58,177.51,20.0]
[1734696275928,0.12549,177.64,177.53,20.0]
[1734696275929,44.14774747,177.6,177.53,20.0]
[1734696276123,44.14774747,177.64,177.57,20.0]
[1734696276321,44.14774747,177.66,177.59,20.0]
[1734696276539,44.14774747,177.6,177.57,20.0]
[1734696276747,44.14774747,177.62,177.57,20.0]
[1734696276942,44.14774747,177.64,177.58,0.12549]
[1734696277144,44.14774747,177.66,177.6,0.12549]
[1734696277318,44.14774747,177.64,177.57,20.0]
[1734696277718,1.05557625,177.74,177.63,44.14774747]
[1734696277925,44.14774747,177.76,177.67,0.12549]
[1734696278250,1.0550958,177.83,177.79,0.12549]
[1734696278553,44.86438797,177.93,177.83,20.0]
[1734696278751,44.14774747,177.91,177.85,20.0]
[1734696278917,44.86438797,177.93,177.82,44.14774747]
[1734696279117,0.12549,177.79,177.51,44.14774747]
[1734696279345,44.14774747,177.65,177.54,44.14774747]
[1734696279642,1.05543574,177.78,177.51,44.14774747]
[1734696279643,44.14774747,177.63,177.51,44.14774747]
[1734696279852,44.14774747,177.63,177.53,44.14774747]
[1734696280059,44.14774747,177.58,177.52,22.541046]
[1734696280344,44.14774747,177.54,177.43,44.14774747]
[1734696280732,44.14774747,177.6,177.49,44.14774747]
[1734696280932,44.14774747,177.62,177.51,44.14774747]
[1734696281125,44.14774747,177.58,177.48,22.547388]
[1734696281449,44.14774747,177.62,177.51,44.14774747]
[1734696281831,44.14774747,177.62,177.52,0.12549]
[1734696282442,1.05557899,177.73,177.65,0.12549]
[1734696282670,6.843,177.86,177.72,0.12549]
[1734696282671,44.14774747,177.79,177.72,0.12549]
[1734696282838,45.20261746,177.83,177.72,44.27323747]
[1734696283048,44.14774747,177.83,177.78,0.12549]
[1734696283227,44.14774747,177.87,177.78,0.12549]
[1734696283431,44.14774747,177.87,177.79,20.0]
[1734696283725,44.86438797,177.93,177.89,20.0]
[1734696283726,0.7166405,177.93,177.89,20.0]
[1734696284137,44.14774747,177.95,177.89,20.0]
[1734696284337,44.14774747,177.91,177.85,20.0]
[1734696284539,44.14774747,177.91,177.71,10.5286]
[1734696284540,44.14774747,177.86,177.79,20.0]
[1734696285255,44.14774747,177.86,177.78,0.12549]
[1734696285452,44.14774747,177.84,177.78,0.12549]
[1734696285643,1.05425286,177.92,177.78,0.12549]
[1734696285644,44.14774747,177.82,177.78,0.12549]
[1734696285829,44.14774747,177.86,177.8,20.0]
[1734696286035,44.14774747,177.84,177.8,20.0]
[1734696286423,44.14774747,177.84,177.78,20.0]
[1734696286632,44.14774747,177.9,177.83,0.12549]
[1734696287456,11.2059,177.99,177.75,44.14774747]
[1734696287457,44.14774747,177.85,177.75,44.14774747]
[1734696287665,44.14774747,177.83,177.73,44.14774747]
[1734696287836,44.14774747,177.85,177.75,44.14774747]
[1734696288036,44.14774747,177.87,177.77,44.14774747]
[1734696288237,44.14774747,177.89,177.79,44.14774747]
[1734696288444,44.14774747,177.91,177.81,44.14774747]
[1734696288665,44.14774747,177.95,177.87,0.12549]
[1734696288868,44.14774747,177.97,177.91,0.12549]
[1734696289032,44.14774747,178.01,177.93,0.12549]
[1734696289233,44.14774747,178.03,177.97,0.12549]
[1734696289461,44.14774747,178.03,178.0,20.0]
[1734696289734,44.14774747,178.01,177.66,30.0]
[1734696289965,44.14774747,177.87,177.64,32.24415427]
[1734696290148,44.14774747,177.83,177.73,44.14774747]
[1734696290334,44.14774747,177.79,177.69,44.14774747]
[1734696290528,44.14774747,177.77,177.67,44.14774747]
[1734696290955,1.05472729,177.76,177.63,44.14774747]
[1734696291167,44.14774747,177.71,177.6,44.14774747]
[1734696291343,44.14774747,177.67,177.56,44.14774747]
[1734696291545,44.14774747,177.65,177.56,44.14774747]
[1734696291858,44.14774747,177.75,177.6,0.12549]
[1734696291859,44.14774747,177.67,177.6,0.12549]
[1734696292041,44.14774747,177.65,177.54,44.14774747]
[1734696292377,44.14774747,177.61,177.48,66.69513547]
[1734696292676,1.0559544,177.6,177.5,44.14774747]
[1734696292836,1.0559544,177.6,177.48,22.547388]
[1734696293376,44.14774747,177.53,177.48,22.547388]
[1734696293588,44.14774747,177.57,177.48,22.547388]
[1734696293737,44.14774747,177.59,177.48,66.69513547]
[1734696294278,44.14774747,177.61,177.51,0.12549]
[1734696294447,44.14774747,177.59,177.51,0.12549]
[1734696294777,44.14774747,177.61,177.51,0.12549]
[1734696295138,11.3106,177.82,177.64,0.12549]
[1734696295361,44.14774747,177.77,177.71,20.0]
[1734696295569,45.20250025,177.81,177.73,20.0]
[1734696295751,44.14774747,177.79,177.73,20.0]
[1734696295963,44.14774747,177.84,177.73,20.0]
[1734696295964,44.14774747,177.77,177.73,20.0]
[1734696296167,44.14774747,177.75,177.68,20.0]
[1734696296465,44.14774747,177.71,177.68,20.0]
[1734696296666,44.14774747,177.69,177.68,20.0]
[1734696296966,1.05489775,177.74,177.68,20.0]
[1734696296967,44.14774747,177.73,177.68,23.776884]
[1734696297174,44.14774747,177.73,177.71,20.0]
[1734696297543,44.14774747,177.75,177.71,20.0]
[1734696298051,44.14774747,177.73,177.71,20.0]
[1734696298943,44.14774747,177.75,177.71,20.0]
[1734696299140,44.14774747,177.79,177.75,20.0]
[1734696299554,44.14774747,177.77,177.76,23.776884]
[1734696299773,44.14774747,177.81,177.78,20.0]
[1734696300067,44.14774747,177.85,177.83,20.0]
[1734696300739,44.14774747,177.89,177.86,20.0]
[1734696301076,44.14774747,177.87,177.79,22.513229]
[1734696301245,44.14774747,177.81,177.71,20.0]
[1734696301440,44.14774747,177.77,177.76,20.0]
[1734696301660,44.14774747,177.79,177.78,20.0]
[1734696302083,44.14774747,177.93,177.78,20.0]
[1734696302084,44.14774747,177.81,177.78,20.0]
[1734696302375,44.14774747,177.85,177.79,23.902374]
[1734696302549,44.14774747,177.87,177.86,20.0]
[1734696302964,44.14774747,177.89,177.86,43.776884]
[1734696303160,44.14774747,178.02,177.9,20.0]
[1734696303161,44.14774747,177.91,177.9,20.0]
[1734696303552,44.14774747,177.91,177.86,20.0]
[1734696303779,88.29549494,177.87,177.75,22.520001]
[1734696304009,44.14774747,177.77,177.64,44.14774747]
[1734696304203,44.14774747,177.77,177.66,44.14774747]
[1734696304515,44.14774747,177.79,177.7,44.14774747]
[1734696304676,44.14774747,177.81,177.71,0.12549]
[1734696305317,44.14774747,177.83,177.76,20.0]
[1734696305512,44.14774747,177.83,177.77,20.0]
[1734696305716,44.14774747,177.83,177.78,0.12549]
[1734696306022,44.14774747,177.83,177.77,20.0]
[1734696306208,44.14774747,177.83,177.82,23.776884]
[1734696306386,44.14774747,177.85,177.82,23.776884]
[1734696306582,44.14774747,177.91,177.85,43.902374]
[1734696306780,44.14774747,177.95,177.86,44.14774747]
[1734696307083,45.20164255,177.99,177.95,20.0]
[1734696307317,44.14774747,178.01,177.99,20.0]
[1734696307607,44.14774747,178.03,178.0,23.776884]
[1734696307904,44.14774747,178.01,177.99,20.0]
[1734696308607,44.14774747,178.01,177.92,64.14774747]
[1734696308903,44.14774747,178.07,178.0,23.902374]
[1734696309116,44.14774747,178.05,178.03,20.0]
[1734696309289,44.14774747,178.04,178.03,20.0]
[1734696309683,1.05313473,178.1,178.03,20.0]
[1734696309893,44.14774747,178.1,178.08,23.776884]
[1734696310108,44.14774747,178.12,178.11,20.0]
[1734696310314,44.14774747,178.14,178.11,20.0]
[1734696310483,0.9353004,178.19,178.16,43.902374]
[1734696310809,3.67,178.2,178.15,20.0]
[1734696310810,3.41421091,178.2,178.19,23.902374]
[1734696311107,3.41421091,178.2,178.19,23.776884]
[1734696311313,3.41421091,178.2,178.19,68.05012147]
[1734696311989,44.14774747,178.33,178.26,20.0]
[1734696312195,44.14774747,178.29,178.26,20.0]
[1734696312390,44.14774747,178.27,178.15,44.14774747]
[1734696312581,44.14774747,178.2,178.09,44.14774747]
[1734696312780,44.14774747,178.18,178.09,44.14774747]
[1734696312985,44.14774747,178.14,178.05,44.14774747]
[1734696313181,44.14774747,178.18,178.07,44.14774747]
[1734696313407,44.14774747,178.2,178.09,44.14774747]
[1734696313612,45.20028003,178.24,178.15,44.14774747]
[1734696313916,44.14774747,178.22,178.16,0.12549]
[1734696314279,44.14774747,178.22,177.97,11.1614]
[1734696314280,44.14774747,178.18,177.96,6.8697]
[1734696314596,44.14774747,178.17,178.09,44.14774747]
[1734696314805,44.14774747,178.19,178.09,44.14774747]
[1734696315229,44.14774747,178.19,178.02,44.14774747]
[1734696315230,44.14774747,178.21,178.13,44.14774747]
[1734696315405,44.14774747,178.25,178.16,0.12549]
[1734696315732,44.14774747,178.31,178.25,23.776884]
[1734696316037,1.05152715,178.3,178.24,20.0]
[1734696316203,44.14774747,178.28,178.24,20.0]
[1734696316402,44.14774747,178.28,178.23,0.12549]
[1734696316619,44.14774747,178.34,178.27,23.902374]
[1734696316821,44.14774747,178.32,178.3,20.0]
[1734696317433,44.14774747,178.32,178.29,20.0]
[1734696317602,44.14774747,178.36,178.3,23.902374]
[1734696317809,44.14774747,178.39,178.37,20.0]
[1734696318128,44.14774747,178.41,178.38,23.776884]
[1734696318298,44.14774747,178.41,178.37,20.0]
[1734696318683,45.08304787,178.43,178.4,43.776884]
[1734696318940,45.08304787,178.43,178.23,30.0]
[1734696318941,0.9353004,178.43,178.42,23.776884]
[1734696319544,0.9353004,178.43,178.42,23.902374]
[1734696319714,0.9353004,178.43,178.42,23.776884]
[1734696319909,45.08304787,178.43,178.38,20.0]
[1734696320124,45.08304787,178.43,178.42,20.0]
[1734696320314,45.08304787,178.43,178.27,44.14774747]
[1734696320519,44.14774747,178.38,178.27,44.14774747]
[1734696320830,44.14774747,178.4,178.31,0.12549]
[1734696321037,44.14774747,178.42,178.32,44.14774747]
[1734696321407,0.9353004,178.43,178.34,44.14774747]
[1734696321608,0.9353004,178.43,178.39,20.0]
[1734696321808,0.9353004,178.43,178.42,43.902374]
[1734696322218,44.14774747,178.52,178.43,43.902374]
[1734696322453,43.7041267,178.54,178.47,23.902374]
[1734696322626,44.14774747,178.6,178.58,20.0]
[1734696322829,1.04983591,178.59,178.58,20.0]
[1734696323156,44.14774747,178.6,178.55,20.0]
[1734696323451,44.14774747,178.56,178.55,20.0]
[1734696323636,44.14774747,178.56,178.49,20.0]
[1734696323820,44.14774747,178.52,178.43,23.776884]
[1734696324024,44.14774747,178.5,178.29,44.14774747]
[1734696324224,44.14774747,178.44,178.34,44.14774747]
[1734696324447,44.14774747,178.56,178.28,6.8722]
[1734696324448,44.14774747,178.42,178.32,44.14774747]
[1734696324839,44.14774747,178.42,177.33,28.37903591]
[1734696324840,44.14774747,178.38,178.28,44.14774747]
[1734696325043,44.14774747,178.4,178.3,44.14774747]
[1734696325249,1.05115668,178.46,178.39,44.14774747]
[1734696325450,44.14774747,178.49,178.4,0.12549]
[1734696325749,44.14774747,178.56,178.42,0.12549]
[1734696325750,44.14774747,178.51,178.42,0.12549]
[1734696326052,44.14774747,178.47,178.37,44.14774747]
[1734696326958,44.14774747,178.49,178.4,0.12549]
[1734696327152,44.14774747,178.44,178.4,20.12549]
[1734696327451,44.14774747,178.42,178.23,2.27185311]
[1734696327631,44.14774747,178.37,178.27,44.14774747]
[1734696327825,44.14774747,178.47,178.25,44.14774747]
[1734696327826,44.14774747,178.35,178.25,44.14774747]
[1734696328067,10.78,178.44,178.2,44.14774747]
[1734696328068,44.14774747,178.37,178.27,44.14774747]
[1734696328240,44.14774747,178.42,178.31,44.14774747]
[1734696328436,44.14774747,178.4,178.31,44.14774747]
[1734696328829,44.14774747,178.4,178.29,44.14774747]
[1734696329139,44.14774747,178.44,178.33,44.14774747]
[1734696329347,1.05090819,178.5,178.38,0.12549]
[1734696329543,44.14774747,178.56,178.46,44.14774747]
[1734696329843,1.20172168,178.61,178.47,0.12549]
[1734696329844,44.14774747,178.54,178.47,0.12549]
[1734696330042,44.14774747,178.5,178.41,23.776884]
[1734696330253,44.14774747,178.52,178.43,23.776884]
[1734696330439,44.14774747,178.54,178.47,23.776884]
[1734696330639,44.14774747,178.52,178.5,20.0]
[1734696330943,1.05035624,178.51,178.5,20.0]
[1734696331150,1.05035624,178.51,178.39,20.0]
[1734696331151,1.0505185,178.51,178.39,20.0]
[1734696331449,44.14774747,178.47,178.41,20.0]
[1734696331635,44.14774747,178.45,178.29,22.443258]
[1734696331835,44.14774747,178.37,178.29,66.59100547]
[1734696332038,43.64774747,178.37,178.27,44.14774747]
[1734696332251,44.14774747,178.35,178.25,44.14774747]
[1734696332450,44.14774747,178.31,178.21,44.14774747]
[1734696332626,1.05163588,178.37,178.21,44.14774747]
[1734696332830,1.05163588,178.37,178.28,44.14774747]
[1734696333041,44.14774747,178.39,178.3,44.14774747]
[1734696333244,1.05130109,178.42,178.3,44.14774747]
[1734696333245,44.14774747,178.41,178.3,44.14774747]
[1734696333443,44.14774747,178.43,178.33,0.12549]
[1734696333934,44.14774747,178.39,178.29,44.14774747]
[1734696334353,44.14774747,178.41,178.29,44.14774747]
[1734696334539,44.14774747,178.39,178.29,44.14774747]
[1734696334736,44.14774747,178.41,178.31,44.14774747]
[1734696334942,44.14774747,178.43,178.32,0.12549]
[1734696335241,44.14774747,178.45,178.36,0.12549]
[1734696335450,44.14774747,178.43,178.36,0.12549]
[1734696335769,44.14774747,178.45,178.4,0.12549]
[1734696335969,1.05081571,178.54,178.46,20.0]
[1734696336261,0.12549,178.46,178.23,44.14774747]
[1734696336569,44.14774747,178.37,178.27,44.14774747]
[1734696337139,44.14774747,178.43,178.34,0.12549]
[1734696337355,44.14774747,178.45,178.36,0.12549]
[1734696337653,44.14774747,178.49,178.4,0.12549]
[1734696337837,44.14774747,178.53,178.45,0.12549]
[1734696338036,44.14774747,178.53,178.46,20.0]
[1734696338338,44.14774747,178.55,178.5,20.0]
[1734696338535,44.14774747,178.57,178.54,20.0]
[1734696339038,44.14774747,178.59,178.54,20.0]
[1734696339260,1.20114409,178.61,178.58,20.0]
[1734696339261,44.29874747,178.61,178.58,20.0]
[1734696340239,44.14774747,178.59,178.52,20.0]
[1734696340431,0.151,178.61,178.54,20.0]
[1734696340640,44.14774747,178.57,178.54,20.0]
[1734696340856,44.29874747,178.61,178.59,0.12549]
[1734696341056,0.151,178.61,178.59,23.902374]
[1734696341362,0.9353004,178.67,178.66,43.902374]
[1734696341658,44.14774747,178.69,178.66,20.0]
[1734696341851,44.14774747,178.67,178.61,23.776884]
[1734696342054,44.14774747,178.67,178.65,23.776884]
[1734696342356,1.04940648,178.66,178.61,23.776884]
[1734696342563,1.04940648,178.73,178.53,44.14774747]
[1734696342859,20.0,178.67,178.37,33.75]
[1734696343063,20.12549,178.65,178.35,2.23192813]
[1734696343248,24.82755807,178.64,178.33,6.3801]
[1734696343443,24.82755807,178.64,178.29,6.83917997]
[1734696343444,10.5303,178.58,178.29,6.83917997]
[1734696343645,10.5303,178.58,178.23,16.7029]
[1734696343646,23.902374,178.56,178.23,16.7029]
[1734696343870,23.902374,178.54,178.25,33.75]
[1734696344062,23.776884,178.52,178.25,33.75]
[1734696344235,30.0,178.57,178.25,33.75]
[1734696344236,1.05106827,178.51,178.25,33.75]
[1734696344437,44.14774747,178.39,178.29,44.14774747]
[1734696344651,44.14774747,178.35,178.24,44.14774747]
[1734696344945,44.14774747,178.31,178.22,66.60035947]
[1734696345149,44.14774747,178.29,178.2,44.14774747]
[1734696345352,44.14774747,178.34,178.24,44.14774747]
[1734696345572,44.14774747,178.3,178.23,22.451429]
[1734696345764,44.14774747,178.26,178.16,44.14774747]
[1734696345963,44.14774747,178.28,178.18,44.14774747]
[1734696346266,44.14774747,178.26,178.16,44.14774747]
[1734696346441,1.05201141,178.25,178.16,44.14774747]
[1734696346646,44.14774747,178.22,178.12,44.14774747]
[1734696347046,1.05219771,178.21,178.12,44.14774747]
[1734696347263,1.05226519,178.21,178.12,44.14774747]
[1734696347465,44.14774747,178.22,178.12,44.14774747]
[1734696347666,44.14774747,178.24,178.12,77.89774747]
[1734696347874,44.14774747,178.22,178.13,22.463929]
[1734696348050,44.14774747,178.2,178.11,0.7686176]
[1734696348244,44.14774747,178.13,178.11,0.7686176]
[1734696348454,45.20055172,178.12,178.02,22.477672]
[1734696348647,44.14774747,178.04,177.93,44.14774747]
[1734696348867,44.14774747,178.06,177.96,0.12549]
[1734696349070,44.14774747,178.08,177.97,44.14774747]
[1734696349266,44.14774747,178.06,177.97,44.14774747]
[1734696349473,44.14774747,178.06,177.98,22.482986]
[1734696349678,44.14774747,178.08,177.98,22.482986]
[1734696349881,1.05297073,178.07,177.98,22.482986]
[1734696350060,44.14774747,178.08,177.97,44.14774747]
[1734696350268,44.14774747,178.08,177.99,44.14774747]
[1734696350493,44.14774747,178.1,178.02,0.12549]
[1734696350661,44.14774747,178.12,178.02,0.12549]
[1734696350993,44.14774747,178.08,178.02,0.12549]
[1734696351177,44.14774747,178.1,178.01,44.14774747]
[1734696351370,44.14774747,178.12,178.03,44.14774747]
[1734696352064,44.14774747,178.14,178.06,23.902374]
[1734696352259,44.14774747,178.16,178.06,23.902374]
[1734696352455,44.14774747,178.16,178.07,44.14774747]
[1734696352654,44.14774747,178.26,178.15,0.12549]
[1734696352864,44.14774747,178.28,178.19,23.902374]
[1734696353054,44.14774747,178.3,178.2,44.14774747]
[1734696353260,44.14774747,178.38,178.19,23.776884]
[1734696353261,44.14774747,178.24,178.19,23.776884]
[1734696353578,44.14774747,178.24,178.15,23.776884]
[1734696353959,45.19971641,178.28,178.18,44.14774747]
[1734696354292,44.14774747,178.26,178.16,44.14774747]
[1734696354496,44.14774747,178.28,178.18,44.14774747]
[1734696354701,44.14774747,178.28,178.15,23.776884]
[1734696354702,44.14774747,178.32,178.23,23.902374]
[1734696354906,44.14774747,178.34,178.26,0.12549]
[1734696355189,44.14774747,178.34,178.26,23.902374]
[1734696355980,44.14774747,178.27,178.12,26.83917997]
[1734696356276,44.14774747,178.22,178.12,44.14774747]
[1734696356696,44.14774747,178.24,178.14,44.14774747]
[1734696356893,44.14774747,178.24,178.15,0.12549]
[1734696357059,44.14774747,178.24,178.14,44.14774747]
[1734696357060,44.14774747,178.28,178.19,0.12549]
[1734696357385,44.14774747,178.3,178.21,0.12549]
[1734696357686,44.14774747,178.3,178.21,23.902374]
[1734696357903,44.14774747,178.3,178.23,23.902374]
[1734696358198,44.14774747,178.32,178.23,57.652374]
[1734696358563,44.14774747,178.34,178.25,57.652374]
[1734696358991,44.14774747,178.32,178.25,23.902374]
[1734696359298,1.0515613,178.37,178.2,44.14774747]
[1734696359299,44.14774747,178.28,178.2,44.14774747]
[1734696359587,44.14774747,178.26,178.16,44.14774747]
[1734696359958,44.14774747,178.26,178.17,33.75]
[1734696360164,44.14774747,178.28,178.18,44.14774747]
[1734696360468,44.14774747,178.32,178.23,0.12549]
[1734696360666,44.14774747,178.3,178.2,44.14774747]
[1734696360994,44.14774747,178.3,177.97,8.79301944]
[1734696360995,44.14774747,178.24,178.14,77.89774747]
[1734696361197,44.14774747,178.24,178.11,2.27638701]
[1734696361198,44.14774747,178.32,178.23,44.14774747]
[1734696361492,44.14774747,178.36,178.26,0.12549]
[1734696361707,44.14774747,178.34,178.26,0.12549]
[1734696361854,44.14774747,178.36,178.26,0.12549]
[1734696362165,44.14774747,178.36,178.3,23.776884]
[1734696362361,44.14774747,178.31,178.21,44.14774747]
[1734696362562,44.14774747,178.38,178.17,44.14774747]
[1734696362563,44.14774747,178.26,178.17,44.14774747]
[1734696362765,44.14774747,178.22,178.11,52.94076691]
[1734696362967,44.14774747,178.22,178.11,55.18470712]
[1734696363171,44.14774747,178.2,178.12,33.75]
[1734696363483,44.14774747,178.22,178.11,44.14774747]
[1734696363690,44.14774747,178.24,178.13,44.14774747]
[1734696364073,44.14774747,178.27,178.18,33.87549]
[1734696364472,44.14774747,178.29,178.2,33.87549]
[1734696364786,44.14774747,178.29,178.2,0.12549]
[1734696364982,44.14774747,178.31,178.2,23.902374]
[1734696365185,44.14774747,178.27,178.18,33.75]
[1734696365585,44.14774747,178.31,178.19,78.02323747]
[1734696365788,44.14774747,178.33,178.24,33.75]
[1734696366089,44.14774747,178.39,178.3,0.12549]
[1734696366387,44.14774747,178.33,178.3,0.12549]
[1734696366691,44.14774747,178.33,178.2,16.86]
[1734696366692,44.14774747,178.35,178.28,0.12549]
[1734696366986,14.0051,178.51,178.28,0.12549]